bitfinex/quotes_ETHUSD_20251015
["timestamp","ask_amount","ask_price","bid_price","bid_amount"]
[1760535971989,5.419,4083.0,4082.9,1e-08]
[1760535973796,3.691,4083.0,4082.9,0.46550001]
[1760535974124,3.692,4083.0,4082.9,3.03713952]
[1760535974312,2.053535,4084.2,4083.1,2.44907169]
[1760535974513,0.1224,4084.2,4083.2,2.66424204]
[1760535974825,1.103,4084.3,4084.1,0.2152]
[1760535975025,1.103,4084.3,4084.2,2.91395991]
[1760535975223,1.103,4084.3,4084.2,0.4655]
[1760535975445,5.421,4084.3,4084.2,0.5879]
[1760535975736,3.693,4084.3,4084.2,3.03635991]
[1760535975887,3.693,4084.3,4084.2,0.5879]
[1760535976212,3.693,4084.3,4084.2,3.03635991]
[1760535976398,3.693,4084.3,4084.2,0.5879]
[1760535977105,3.693,4084.3,4084.2,3.03635991]
[1760535977294,3.693,4084.3,4084.2,0.1224]
[1760535977502,3.229034,4084.2,4083.2,0.2152]
[1760535977706,2.893784,4083.7,4083.2,0.3376]
[1760535977928,2.59,4083.6,4083.2,0.3376]
[1760535978145,7.466099,4083.4,4082.9,0.00535101]
[1760535978440,23.31773252,4083.0,4082.9,0.00535101]
[1760535978609,22.93535859,4083.0,4082.9,0.00535101]
[1760535978807,18.89474231,4083.0,4082.9,0.00535101]
[1760535979005,13.49092952,4083.0,4082.9,0.00535101]
[1760535979219,9.73732952,4083.0,4082.9,0.00535101]
[1760535979540,17.18756959,4083.0,4082.9,0.00535101]
[1760535979745,17.92066959,4083.0,4082.9,0.00535101]
[1760535979939,18.27491731,4083.0,4082.9,0.00535101]
[1760535980505,27.11061131,4083.0,4082.9,0.00535101]
[1760535981133,11.22156359,4083.0,4082.9,0.00535101]
[1760535981542,34.43533231,4083.0,4082.9,0.00535101]
[1760535982129,5.13390659,4083.0,4082.9,0.00535101]
[1760535982333,11.76971959,4083.0,4082.9,0.00535101]
[1760535982620,9.435298,4083.0,4082.9,0.00535101]
[1760535982814,6.440845,4083.0,4082.9,0.00535101]
[1760535983145,3.693,4083.0,4082.9,0.00535101]
[1760535983513,7.87017952,4083.0,4082.9,0.00535101]
[1760535983722,5.421,4083.0,4082.9,0.00535101]
[1760535984033,20.35140559,4083.0,4082.9,0.00535101]
[1760535984210,20.98500559,4083.0,4082.9,0.00535101]
[1760535984621,16.63418059,4083.0,4082.9,0.00535101]
[1760535984817,32.39382359,4083.0,4082.9,0.00535101]
[1760535985023,21.04750659,4083.0,4082.9,0.00535101]
[1760535985227,7.87017952,4083.0,4082.9,0.00535101]
[1760535985568,2.3616,4083.0,4082.9,0.00535101]
[1760535985725,17.24448,4083.6,4082.9,0.00535101]
[1760535986049,4.772497,4083.4,4082.9,0.00535101]
[1760535986249,1.728,4083.1,4082.9,0.00535101]
[1760535986431,4.318,4083.0,4082.9,0.00535101]
[1760535986819,5.5275079,4084.0,4082.9,0.47085101]
[1760535987152,1.728,4083.7,4082.9,0.00535101]
[1760535987452,2.59,4083.9,4082.9,0.00535101]
[1760535987453,1.728,4083.1,4082.9,0.00535101]
[1760535987619,4.318,4083.0,4082.9,0.00535101]
[1760535987955,10.87577952,4083.0,4082.9,0.00535101]
[1760535988138,4.318,4083.0,4082.9,0.00535101]
[1760535988343,6.7616,4083.0,4082.9,0.00535101]
[1760535988548,23.43566652,4083.0,4082.9,0.00535101]
[1760535988737,23.83909359,4083.0,4082.9,0.00535101]
[1760535988920,24.17164131,4083.0,4082.9,1e-08]
[1760535989125,30.09471848,4082.5,4082.4,0.002]
[1760535989327,44.70173745,4082.5,4082.4,0.002]
[1760535989631,22.6149995,4082.1,4082.0,0.002]
[1760535989852,27.23692657,4082.1,4082.0,0.002]
[1760535990354,10.214524,4082.1,4082.0,0.002]
[1760535990554,10.5633435,4082.1,4082.0,0.002]
[1760535990876,16.3915585,4082.1,4082.0,0.002]
[1760535991180,16.4912585,4082.1,4082.0,0.002]
[1760535991452,1.728,4080.9,4080.2,0.2152]
[1760535991660,1.728,4080.6,4080.2,0.2152]
[1760535991840,1.728,4080.4,4080.2,0.2152]
[1760535992043,1.728,4080.4,4080.2,0.6807]
[1760535992443,1.728,4080.4,4077.0,0.2152]
[1760535992444,2.3616,4080.2,4077.0,0.2152]
[1760535992659,2.3616,4080.2,4078.5,0.2152]
[1760535992660,0.6336,4079.6,4078.5,0.2152]
[1760535992868,1.728,4080.4,4079.5,0.2152]
[1760535993171,1.103,4079.8,4079.5,0.2152]
[1760535993339,2.59,4079.7,4079.6,0.4655]
[1760535993833,4.318,4079.7,4079.6,0.4655]
[1760535994061,2.59,4079.7,4079.6,0.4655]
[1760535994464,2.59,4079.7,4079.6,2.9167207]
[1760535995144,0.0983,4081.5,4079.6,0.4655]
[1760535995465,2.349625,4080.8,4079.9,2.45099192]
[1760535995773,1.728,4080.6,4080.0,2.89316294]
[1760535995945,1.728,4080.4,4080.1,0.2276]
[1760535996149,1.728,4080.2,4080.1,0.2276]
[1760535996469,1.104,4081.1,4080.2,0.4422]
[1760535996676,1.104,4081.1,4080.1,2.67846384]
[1760535996677,1.728,4080.9,4080.1,0.2276]
[1760535996859,0.122,4080.8,4079.7,0.4422]
[1760535997063,0.122,4080.8,4079.5,0.2152]
[1760535997064,4.17869797,4080.5,4079.5,0.2152]
[1760535997258,2.59,4080.4,4079.5,0.2152]
[1760535997675,2.59,4080.4,4079.6,0.4422]
[1760535998384,1.728,4080.2,4079.6,0.4422]
[1760535998557,2.59,4080.1,4079.7,0.1224]
[1760535998877,2.59,4080.0,4079.7,0.1224]
[1760535999083,1.728,4079.8,4078.5,0.2152]
[1760535999382,0.6336,4079.7,4079.1,0.2276]
[1760535999592,1.728,4079.8,4079.1,0.2276]
[1760535999775,2.57365051,4079.6,4078.9,0.1224]
[1760535999945,1.728,4079.4,4078.5,0.2152]
[1760536000148,1.728,4079.2,4078.5,0.2152]
[1760536000352,1.728,4078.5,4077.4,0.4422]
[1760536000658,1.728,4078.5,4076.0,0.4422]
[1760536000659,1.728,4078.3,4076.0,0.4422]
[1760536000857,0.1227,4076.1,4073.0,0.2276]
[1760536001062,0.1227,4076.1,4071.8,0.2276]
[1760536001063,30.1227,4074.7,4074.6,2.3373]
[1760536001250,16.70251391,4074.7,4074.6,1.11540215]
[1760536001582,16.70251391,4074.7,4071.5,0.4422]
[1760536001583,2.3616,4074.2,4071.5,0.4422]
[1760536001756,1.728,4073.3,4071.5,0.4422]
[1760536001957,12.44005374,4073.4,4071.5,0.4422]
[1760536001958,2.914855,4073.0,4071.5,0.4422]
[1760536002282,2.592,4073.2,4071.5,0.3922]
[1760536002283,2.405836,4072.6,4071.5,0.3922]
[1760536002484,0.6336,4073.0,4072.5,0.2276]
[1760536002684,0.6336,4073.0,4071.5,0.3922]
[1760536002685,0.1208,4072.6,4071.4,0.2276]
[1760536002848,0.6336,4074.0,4071.4,0.2276]
[1760536002849,2.594,4072.5,4071.4,0.2276]
[1760536003049,11.7130919,4073.0,4071.4,0.2276]
[1760536003356,1.7272,4073.0,4071.4,0.2276]
[1760536003887,3.979691,4073.6,4071.5,0.02456097]
[1760536004049,0.6336,4073.5,4071.9,2.45584568]
[1760536004384,1.104,4073.7,4071.8,0.2276]
[1760536004579,0.0507,4073.9,4071.9,0.4422]
[1760536004580,0.6336,4073.5,4071.9,0.4422]
[1760536004780,0.6336,4073.3,4071.9,0.4422]
[1760536004988,1.104,4073.8,4071.9,0.4422]
[1760536005147,1.104,4074.1,4073.2,0.2276]
[1760536005348,1.104,4074.6,4073.3,0.4422]
[1760536005584,1.104,4074.6,4074.5,0.2276]
[1760536005768,1.104,4074.6,4074.1,0.2276]
[1760536006080,2.282,4074.6,4073.5,0.4422]
[1760536006292,2.282,4074.6,4073.2,0.2276]
[1760536006446,0.6336,4074.4,4073.2,0.2276]
[1760536006646,0.05,4074.5,4073.1,0.2276]
[1760536006890,2.638,4074.4,4074.3,2.45440934]
[1760536007046,2.638,4074.4,4073.1,0.2276]
[1760536007047,1.104,4078.2,4074.4,0.2276]
[1760536007243,1.104,4078.2,4075.1,2.45392751]
[1760536007447,1.104,4078.2,4075.0,2.3616]
[1760536007448,1.104,4078.2,4075.3,0.6336]
[1760536007674,1.104,4078.2,4075.5,0.6336]
[1760536007872,1.104,4078.2,4076.2,0.6336]
[1760536008120,1.104,4078.2,4077.6,0.2276]
[1760536008276,2.508,4077.7,4077.6,3.12222299]
[1760536008473,2.508,4077.7,4076.5,0.4422]
[1760536008711,2.508,4077.7,4076.3,0.2276]
[1760536008895,1.728,4077.6,4075.8,0.4422]
[1760536009415,2.508,4077.7,4076.8,2.45287531]
[1760536009569,2.917639,4077.6,4075.8,0.4422]
[1760536009771,2.10239922,4077.6,4075.8,0.7317766]
[1760536010005,2.508,4077.7,4076.8,2.45289624]
[1760536010229,2.508,4077.7,4077.2,0.1224]
[1760536010517,2.508,4077.7,4076.5,0.4422]
[1760536010805,5.334985,4077.6,4076.4,0.2276]
[1760536011008,1.778,4077.6,4076.2,0.2276]
[1760536011187,1.728,4077.6,4076.6,2.45302161]
[1760536011384,1.728,4077.6,4076.4,2.45309852]
[1760536011585,2.508,4077.7,4076.4,0.55761891]
[1760536011794,2.508,4077.7,4076.5,0.4422]
[1760536012105,2.508,4077.7,4076.2,0.2276]
[1760536012106,1.728,4077.6,4076.2,2.68084227]
[1760536012306,2.45266359,4077.2,4075.2,0.2276]
[1760536012508,2.148053,4076.2,4073.8,2.68227104]
[1760536012711,1.728,4075.9,4074.0,0.4422]
[1760536013004,1.728,4075.6,4074.2,0.2276]
[1760536013323,1.728,4076.0,4074.2,0.2276]
[1760536013476,1.728,4075.8,4075.3,2.45374741]
[1760536013674,1.728,4075.8,4074.3,0.4422]
[1760536014174,1.728,4075.8,4075.6,2.45362067]
[1760536014398,2.652,4075.9,4074.7,0.4505]
[1760536014604,2.652,4075.9,4074.8,2.45410811]
[1760536014805,1.728,4075.8,4074.8,2.45410811]
[1760536015011,1.728,4075.8,4074.2,0.2276]
[1760536015215,1.728,4075.8,4074.5,2.45428886]
[1760536015377,0.6336,4076.8,4074.4,0.4505]
[1760536015582,1.728,4076.6,4074.4,0.4505]
[1760536015880,1.728,4076.6,4074.7,0.6336]
[1760536016082,1.105,4076.7,4076.6,2.45302457]
[1760536016285,1.105,4076.7,4076.6,2.90352457]
[1760536016589,1.105,4079.1,4076.6,1.34942588]
[1760536016913,1.105,4079.1,4079.0,2.66588126]
[1760536017076,2.454,4079.1,4079.0,0.6648]
[1760536017280,2.454,4079.1,4078.4,2.4519135]
[1760536017599,2.454,4079.1,4078.6,2.45179346]
[1760536017808,2.454,4079.1,4078.0,0.2143]
[1760536018004,2.454,4079.1,4078.2,0.4505]
[1760536018180,2.454,4079.1,4078.1,0.2143]
[1760536018513,2.454,4079.1,4077.4,0.4505]
[1760536019115,1.728,4078.7,4077.4,0.4505]
[1760536019292,2.454,4079.1,4077.5,0.4505]
[1760536019496,1.105,4079.1,4077.6,0.02452422]
[1760536019678,1.105,4079.1,4079.0,2.45158126]
[1760536019883,2.223,4079.1,4079.0,2.90208126]
[1760536020286,2.223,4079.1,4077.5,2.45247998]
[1760536020287,2.223,4079.1,4078.1,0.2143]
[1760536020518,2.223,4079.1,4077.3,0.4505]
[1760536020811,1.728,4079.0,4078.6,0.1224]
[1760536021029,2.223,4079.1,4077.1,0.6336]
[1760536021188,2.223,4079.1,4079.0,0.1224]
[1760536021698,2.223,4079.1,4079.0,0.5729]
[1760536021903,2.223,4079.1,4079.0,3.02448126]
[1760536022090,0.1724,4081.0,4080.2,2.45080644]
[1760536022417,4.893009,4081.2,4079.7,0.4505]
[1760536022658,1.728,4080.9,4078.4,0.4505]
[1760536022857,1.728,4080.9,4078.1,0.2143]
[1760536022858,0.0704,4079.8,4078.2,2.45206218]
[1760536023021,2.45078967,4080.4,4078.4,2.9024407]
[1760536023221,9.052916,4080.1,4078.1,0.2143]
[1760536023432,2.45128074,4079.6,4078.0,2.45218051]
[1760536023633,5.45604961,4079.3,4077.9,2.452237]
[1760536023834,5.45604961,4079.3,4077.3,0.4505]
[1760536023835,2.45153361,4079.1,4077.3,0.4505]
[1760536024043,2.07894,4078.8,4077.4,2.45254328]
[1760536024245,0.0507,4078.7,4077.2,2.45262489]
[1760536024456,1.728,4078.9,4077.3,0.4505]
[1760536024643,2.658,4079.0,4077.4,0.02452543]
[1760536024849,2.658,4079.0,4078.9,2.45164137]
[1760536025050,2.658,4079.0,4078.9,2.90214137]
[1760536025663,2.658,4079.0,4078.8,0.2143]
[1760536026030,2.658,4079.0,4078.3,0.4453]
[1760536026224,2.658,4079.0,4078.2,0.236]
[1760536026432,2.658,4079.0,4078.8,2.45168995]
[1760536026666,0.099,4080.9,4079.2,2.45142485]
[1760536026957,1.7272,4080.6,4078.8,0.245169]
[1760536027157,3.213253,4080.7,4078.2,0.236]
[1760536027357,2.755,4080.8,4078.2,0.236]
[1760536027358,0.099,4080.5,4078.4,2.45194193]
[1760536027576,2.1202,4080.7,4079.0,2.45156451]
[1760536027867,2.800918,4080.7,4078.5,0.4453]
[1760536028032,2.180918,4080.3,4078.5,0.4453]
[1760536028230,2.45078852,4080.4,4078.9,2.45158385]
[1760536028428,2.45078852,4080.4,4078.6,2.4518217]
[1760536028429,2.755,4080.8,4078.6,0.6336]
[1760536028630,2.656,4080.8,4078.7,0.4453]
[1760536028934,2.656,4080.8,4078.8,0.6336]
[1760536029134,2.656,4080.8,4078.9,0.4453]
[1760536029351,1.728,4080.6,4078.2,0.236]
[1760536029537,1.728,4080.4,4078.2,0.236]
[1760536029746,2.45106413,4079.9,4078.4,2.45193058]
[1760536029954,0.7326,4080.3,4077.6,1.728]
[1760536029955,3.148899,4079.7,4077.6,1.728]
[1760536030261,3.148899,4079.7,4079.0,2.45156816]
[1760536030465,2.655,4079.8,4079.2,2.45145967]
[1760536030759,2.655,4079.8,4078.5,0.6336]
[1760536030959,2.654,4079.7,4079.6,2.4512207]
[1760536031639,2.654,4079.7,4079.6,2.8965207]
[1760536031829,2.654,4079.7,4079.6,3.67643874]
[1760536032360,2.654,4079.7,4079.6,4.31003874]
[1760536032547,2.654,4079.7,4079.6,4.43243874]
[1760536032859,1.728,4081.3,4079.6,4.43243874]
[1760536032860,0.001,4081.6,4080.2,2.45082979]
[1760536033060,0.001,4081.6,4079.7,0.6336]
[1760536033262,0.001,4081.6,4079.8,0.6311818]
[1760536033558,0.001,4081.6,4080.2,0.6336]
[1760536033883,1.833,4080.9,4080.3,0.6813]
[1760536034450,0.0524,4080.8,4079.7,0.236]
[1760536034635,0.0524,4080.8,4079.1,0.4453]
[1760536035166,0.0524,4080.8,4078.9,1.728]
[1760536035167,2.45062,4080.6,4078.9,1.728]
[1760536035327,2.45088287,4080.2,4078.7,0.4453]
[1760536035664,0.7326,4080.5,4078.0,0.236]
[1760536035845,7.603127,4080.2,4078.0,2.68818009]
[1760536036025,2.45128372,4079.5,4078.1,0.31334801]
[1760536036228,1.728,4080.0,4078.0,0.236]
[1760536036229,2.7188,4079.4,4078.0,0.236]
[1760536036446,2.45147198,4079.2,4078.0,0.236]
[1760536036660,1.728,4079.3,4078.0,0.236]
[1760536036873,0.0688,4079.8,4078.7,2.45174316]
[1760536037027,2.649,4079.2,4078.8,2.45170012]
[1760536037234,2.649,4079.2,4078.3,2.45200205]
[1760536037564,2.649,4079.2,4078.8,2.45168763]
[1760536037777,2.649,4079.2,4078.8,0.4453]
[1760536037968,2.649,4079.2,4078.8,2.45169191]
[1760536038149,2.649,4079.2,4079.1,2.68752116]
[1760536038345,1.104,4080.6,4079.4,0.6336]
[1760536038553,1.104,4080.6,4080.5,2.45068006]
[1760536038852,1.104,4080.6,4079.9,2.45101799]
[1760536039054,1.104,4080.6,4079.6,2.45121891]
[1760536039247,1.104,4080.6,4079.7,2.45115151]
[1760536039450,1.104,4080.6,4079.4,2.45130506]
[1760536039645,2.647,4080.5,4079.7,2.45113895]
[1760536039842,2.647,4080.5,4079.8,2.45108527]
[1760536040048,2.647,4080.5,4079.2,0.4453]
[1760536040273,2.647,4080.5,4079.8,2.45104466]
[1760536040475,2.647,4080.5,4079.6,2.45116562]
[1760536040678,2.647,4080.5,4079.1,0.236]
[1760536040850,2.647,4080.5,4079.8,2.4510919]
[1760536041047,2.646,4080.4,4080.1,2.45086252]
[1760536041415,2.646,4080.4,4080.2,2.45084173]
[1760536041576,2.646,4080.4,4079.9,2.45103128]
[1760536041779,2.646,4080.4,4079.2,0.6336]
[1760536041956,2.646,4080.4,4079.2,0.46360683]
[1760536042162,2.646,4080.4,4079.3,2.45135834]
[1760536042360,2.291858,4080.0,4078.4,0.236]
[1760536042658,0.1224,4080.5,4079.8,0.1224]
[1760536042847,2.647,4080.4,4080.0,2.45093071]
[1760536043047,2.647,4080.4,4079.7,0.236]
[1760536043252,2.647,4080.4,4080.3,0.1224]
[1760536044055,2.647,4080.4,4080.3,2.57320018]
[1760536044364,2.647,4080.4,4080.3,0.1224]
[1760536046549,0.001,4080.6,4080.5,2.45068006]
[1760536046749,0.649,4080.6,4080.5,2.97666746]
[1760536046949,0.649,4080.6,4080.5,2.45068006]
[1760536047248,0.649,4080.6,4080.5,2.89598006]
[1760536048010,0.649,4080.6,4080.5,2.45068006]
[1760536048478,0.649,4080.6,4080.5,2.89598006]
[1760536049758,0.649,4080.6,4080.5,4.62398006]
[1760536049960,0.001,4080.6,4080.5,4.90975542]
[1760536050178,0.001,4080.6,4080.5,4.17868006]
[1760536050494,0.0002,4080.6,4080.5,4.62398006]
[1760536051002,0.0002,4080.6,4080.1,0.002]
[1760536051363,2.54973755,4080.5,4080.1,0.002]
[1760536051563,0.099,4080.4,4080.1,0.002]
[1760536051904,0.0002,4080.6,4080.1,0.002]
[1760536052261,4.846198,4080.4,4080.1,0.002]
[1760536052462,0.099,4080.3,4080.1,0.002]
[1760536052688,2.5498362,4080.3,4080.1,0.002]
[1760536052896,2.211097,4080.2,4080.1,0.002]
[1760536053202,6.38995725,4080.2,4080.1,0.002]
[1760536053400,4.91146025,4080.2,4080.1,0.002]
[1760536053565,11.53235725,4080.2,4080.1,0.002]
[1760536054005,8.03893325,4080.2,4080.1,0.002]
[1760536054201,7.84492025,4080.2,4080.1,0.002]
[1760536054403,8.93156025,4080.2,4080.1,0.002]
[1760536055100,8.93291801,4080.2,4080.1,0.002]
[1760536055290,2.45179195,4078.7,4077.4,2.45248512]
[1760536055490,2.6959,4078.6,4077.4,0.49052089]
[1760536055811,2.646,4078.5,4077.8,2.45225521]
[1760536055969,2.646,4078.4,4077.8,2.45228803]
[1760536056371,2.646,4078.4,4077.5,2.9016726]
[1760536056672,0.1224,4079.1,4078.3,2.80199087]
[1760536056871,1.728,4078.9,4078.3,2.80199407]
[1760536057172,2.6939,4078.8,4078.7,0.1224]
[1760536057467,2.6939,4078.8,4075.0,0.2276]
[1760536057468,1.728,4078.5,4076.4,0.4492]
[1760536057675,2.150362,4078.4,4076.6,2.45302457]
[1760536057876,2.386512,4078.6,4077.3,2.4525658]
[1760536058102,2.386512,4078.6,4076.8,2.45284822]
[1760536058103,0.6336,4078.5,4076.8,2.45284822]
[1760536058298,0.6336,4078.5,4076.0,0.6852]
[1760536058299,0.6336,4078.0,4076.0,0.6852]
[1760536058498,4.372,4077.9,4076.0,0.6852]
[1760536058700,5.34886,4077.8,4076.0,0.6852]
[1760536058870,2.554098,4077.6,4076.4,2.45309281]
[1760536059071,2.45236654,4077.7,4075.2,0.4492]
[1760536059072,8.077635,4077.2,4075.2,0.4492]
[1760536059273,2.645,4077.1,4075.2,2.90306164]
[1760536059605,2.645,4077.1,4075.9,2.45342513]
[1760536059901,2.645,4077.1,4075.7,2.45356034]
[1760536060115,10.257082,4077.0,4075.5,0.2276]
[1760536060309,1.728,4076.7,4075.9,2.45341247]
[1760536060610,1.728,4076.7,4075.9,2.45340098]
[1760536060901,1.728,4076.7,4075.9,2.45339442]
[1760536061300,1.728,4076.7,4076.2,2.45324315]
[1760536061503,2.643,4076.6,4076.3,2.90239956]
[1760536061804,2.643,4076.5,4076.1,2.680893]
[1760536062105,2.643,4076.4,4076.1,3.13007659]
[1760536062303,2.643,4076.4,4075.6,0.4492]
[1760536062518,2.643,4076.4,4075.5,0.2276]
[1760536062669,2.643,4076.4,4075.9,2.45344084]
[1760536062873,2.643,4076.4,4076.0,2.45336619]
[1760536063107,4.18120669,4076.3,4075.5,0.002]
[1760536063310,1.728,4075.9,4075.5,0.002]
[1760536063510,13.06914245,4075.6,4075.5,0.002]
[1760536063673,16.37828951,4075.1,4075.0,0.002]
[1760536064006,19.99852604,4075.1,4075.0,0.002]
[1760536064209,19.75077255,4075.1,4075.0,0.002]
[1760536064395,20.47688055,4075.1,4075.0,0.002]
[1760536064598,19.96788055,4075.1,4075.0,0.002]
[1760536064796,15.20330204,4075.1,4075.0,0.002]
[1760536065306,21.11855055,4075.1,4075.0,0.002]
[1760536065492,5.751454,4075.1,4075.0,0.002]
[1760536065693,7.22986051,4075.1,4075.0,0.002]
[1760536066406,2.45462509,4074.0,4073.0,0.002]
[1760536066601,0.6336,4073.6,4073.0,0.002]
[1760536066805,3.262427,4073.1,4073.0,0.002]
[1760536066988,10.72115945,4073.1,4073.0,0.002]
[1760536067190,7.51260787,4072.6,4072.5,0.002]
[1760536067509,18.17869287,4072.6,4072.5,0.002]
[1760536067710,5.798086,4072.6,4072.5,0.002]
[1760536067911,5.070449,4072.6,4072.5,0.002]
[1760536068098,4.371,4072.6,4072.5,0.002]
[1760536068273,4.4934,4072.6,4072.5,0.002]
[1760536068480,1.8504,4072.6,4072.5,0.002]
[1760536068679,4.4934,4072.6,4072.5,0.002]
[1760536069376,5.127,4072.6,4072.5,0.002]
[1760536069583,12.979837,4072.6,4072.5,0.002]
[1760536069812,7.266489,4072.6,4072.5,0.002]
[1760536069979,4.623489,4072.6,4072.5,0.002]
[1760536070289,10.92492287,4072.6,4072.5,0.002]
[1760536070489,0.6336,4071.6,4071.4,0.002]
[1760536070814,5.92446655,4072.6,4071.4,0.002]
[1760536070815,12.90618226,4071.5,4071.4,0.002]
[1760536071010,13.00518226,4071.5,4071.4,0.002]
[1760536071575,2.45633858,4071.1,4067.8,0.2276]
[1760536071779,2.3616,4069.9,4067.8,0.2276]
[1760536072031,0.0535,4068.1,4066.7,0.2276]
[1760536072315,1.728,4067.9,4066.7,0.2276]
[1760536072521,0.6336,4067.8,4066.0,0.2276]
[1760536072747,0.6336,4067.8,4065.2,0.003]
[1760536072748,0.6336,4067.5,4065.2,0.003]
[1760536073033,0.10334632,4067.7,4065.2,0.003]
[1760536073034,8.566407,4066.4,4065.2,0.003]
[1760536073250,11.263482,4066.4,4065.3,0.4492]
[1760536073533,11.263482,4066.4,4060.9,1.26577963]
[1760536073534,0.00485426,4065.8,4060.9,1.26577963]
[1760536073835,0.00485426,4065.8,4052.3,0.21186586]
[1760536073836,0.70290947,4060.1,4055.0,1.20086758]
[1760536074038,0.70290947,4060.1,4054.4,0.67147708]
[1760536074039,0.0683,4055.1,4054.4,0.67147708]
[1760536074237,0.355,4055.0,4052.1,0.48595951]
[1760536074402,2.3185,4054.8,4053.3,0.2324]
[1760536074601,1.106,4056.2,4054.9,0.2324]
[1760536074803,3.707636,4056.0,4053.3,0.2324]
[1760536075150,0.6336,4055.6,4054.1,0.2324]
[1760536075446,0.6336,4055.4,4054.2,0.4603]
[1760536075608,0.38652979,4059.2,4054.2,0.4603]
[1760536075609,1.106,4058.5,4055.3,0.2324]
[1760536075812,10.743048,4058.3,4055.4,0.4603]
[1760536076023,1.39978,4059.3,4055.4,0.4603]
[1760536076024,0.01850054,4058.2,4055.4,0.4603]
[1760536076222,3.929,4058.1,4055.5,1.728]
[1760536076402,0.4603,4059.5,4058.0,0.2324]
[1760536076604,5.905272,4059.2,4055.7,2.4656656]
[1760536076799,0.74129717,4060.6,4059.1,0.1849]
[1760536077002,1.107,4061.9,4060.5,0.2303]
[1760536077248,2.73952,4061.8,4060.5,0.2303]
[1760536077454,2.73952,4061.8,4056.8,0.02464997]
[1760536077455,0.2303,4060.6,4057.1,0.02464814]
[1760536077631,0.4323,4061.6,4054.0,30.0]
[1760536077841,5.358709,4061.8,4056.4,0.29260389]
[1760536078136,2.747507,4061.4,4054.2,30.0]
[1760536078337,0.4323,4061.3,4054.4,3.48475]
[1760536078538,28.606439,4061.2,4055.2,23.241711]
[1760536078840,0.2303,4062.7,4055.3,0.02465908]
[1760536079041,1.07,4062.6,4057.6,1.728]
[1760536079345,2.46030327,4064.6,4058.4,0.740048]
[1760536079346,0.4323,4063.4,4058.4,0.740048]
[1760536079507,0.1279532,4064.4,4059.8,2.468048]
[1760536079702,0.2303,4066.0,4061.0,0.740048]
[1760536079911,0.137,4065.9,4061.5,0.740048]
[1760536080212,0.137,4065.9,4063.9,0.740048]
[1760536080413,0.4323,4067.3,4064.0,0.02460629]
[1760536080632,2.838769,4067.1,4063.3,0.740048]
[1760536080802,27.866391,4066.8,4061.7,1.728]
[1760536081006,27.87100332,4066.6,4061.6,1.93159979]
[1760536081238,0.4323,4066.5,4061.9,1.728]
[1760536081443,2.45976779,4065.5,4062.1,0.740048]
[1760536081628,5.897965,4065.3,4060.9,2.958048]
[1760536081913,3.0,4065.2,4061.1,5.426031]
[1760536082114,3.0,4065.2,4063.6,0.740048]
[1760536082462,2.074513,4065.1,4061.4,0.740048]
[1760536082620,2.074513,4065.1,4060.9,0.740048]
[1760536082849,1.728,4064.5,4061.7,0.740048]
[1760536083072,7.689509,4064.5,4061.9,2.46187216]
[1760536083373,7.689509,4064.5,4061.4,2.462163]
[1760536083374,2.46038775,4064.4,4061.4,2.462163]
[1760536083601,9.006741,4064.2,4060.9,0.740048]
[1760536083892,2.49865,4063.8,4061.3,2.468048]
[1760536084097,3.33112,4063.6,4059.3,1.99645994]
[1760536084253,3.779746,4063.4,4059.4,0.00660846]
[1760536084452,7.791506,4063.2,4059.5,0.740048]
[1760536084657,3.6616,4063.1,4061.0,0.740048]
[1760536084860,1.108,4063.7,4061.1,0.02462387]
[1760536085059,1.108,4063.7,4061.2,0.740048]
[1760536085276,1.108,4063.7,4061.4,0.740048]
[1760536085277,3.1735,4063.6,4061.4,0.740048]
[1760536085438,0.4323,4063.6,4061.3,0.27358428]
[1760536085640,0.4323,4063.6,4059.3,0.51237368]
[1760536085641,1.728,4063.4,4059.3,0.51237368]
[1760536085868,1.728,4063.5,4060.6,2.46265275]
[1760536086072,4.18894443,4063.5,4061.1,2.46238417]
[1760536086245,0.4323,4063.6,4060.5,3.487909]
[1760536086477,1.914,4063.5,4060.7,0.740048]
[1760536086655,5.13234,4063.4,4060.9,0.740048]
[1760536086954,2.995,4063.3,4061.6,2.46205629]
[1760536087141,2.995,4063.3,4060.9,0.740048]
[1760536087552,1.728,4063.0,4060.9,0.740048]
[1760536087863,2.46147787,4062.6,4059.4,2.46341823]
[1760536088056,4.526629,4062.4,4059.5,2.70986541]
[1760536088258,3.4698,4062.3,4059.6,0.740048]
[1760536088460,2.46185311,4062.0,4059.7,2.46319006]
[1760536088795,0.6953,4062.2,4059.7,0.740048]
[1760536088956,0.6953,4062.2,4059.9,0.740048]
[1760536089157,0.6953,4062.2,4060.3,0.740048]
[1760536089358,0.6953,4062.2,4059.9,0.740048]
[1760536089802,2.4115,4061.0,4059.5,0.48270577]
[1760536089947,3.6863,4060.9,4059.5,0.48270577]
[1760536090148,2.3616,4060.7,4059.3,0.002]
[1760536090362,0.2215,4059.4,4059.3,0.002]
[1760536090573,0.1224,4059.3,4058.8,0.002]
[1760536090881,2.988,4060.2,4058.8,0.002]
[1760536091092,2.989,4060.3,4058.9,0.66023721]
[1760536091293,2.99,4060.2,4058.9,0.002]
[1760536091525,2.99,4060.2,4058.9,0.35825828]